bitfinex-derivatives/quotes_BNBF0:USTF0_20250305
["timestamp","ask_amount","ask_price","bid_price","bid_amount"]
[1741175282561,2.08020102,600.61,599.8,1.24252345]
[1741175282767,1.16014991,600.61,599.93,0.28982973]
[1741175282961,0.3329061,600.77,599.93,0.28982973]
[1741175283159,0.3329061,600.77,599.76,1.24252345]
[1741175283160,4.01424097,600.76,599.76,1.24252345]
[1741175283364,5.17452344,600.75,599.76,1.24252345]
[1741175283565,4.01424097,600.74,599.76,1.24252345]
[1741175283764,1.16028247,600.75,599.76,1.24252345]
[1741175283765,4.01424097,600.73,599.76,1.24252345]
[1741175283965,5.17452344,600.72,599.76,1.24252345]
[1741175284159,4.01424097,600.71,599.76,1.24252345]
[1741175284365,4.01424097,600.7,599.77,0.28982128]
[1741175284562,4.01217407,600.69,599.77,0.28982128]
[1741175284761,4.01217407,600.68,599.77,0.28982128]
[1741175284967,4.01217407,600.67,599.77,0.28982128]
[1741175285165,4.01217407,600.66,599.81,1.24252345]
[1741175285361,4.01217407,600.65,599.81,1.24252345]
[1741175285566,2.54075523,600.64,599.81,1.24252345]
[1741175285763,2.54075523,600.63,599.81,1.24252345]
[1741175285966,2.54075523,600.62,599.81,1.24252345]
[1741175286163,1.16028247,600.64,599.81,1.24252345]
[1741175286164,0.91963677,600.61,599.81,1.24252345]
[1741175286369,1.16028247,600.64,599.81,1.24252345]
[1741175286570,2.54083939,600.63,599.81,1.24252345]
[1741175286771,2.54083939,600.62,599.81,1.24252345]
[1741175287070,1.16028247,600.63,599.81,1.24252345]
[1741175287964,1.47152779,600.75,599.81,1.24252345]
[1741175288167,4.01240227,600.74,599.81,1.24252345]
[1741175288363,4.01240227,600.73,599.81,1.24252345]
[1741175288565,4.01240227,600.73,599.39,2.47243044]
[1741175288566,3.09273062,600.72,599.48,1.24252345]
[1741175288871,4.01240227,600.71,599.8,0.28981524]
[1741175289068,4.01240227,600.7,599.48,1.24252345]
[1741175289269,2.39119944,600.69,599.48,1.24252345]
[1741175289466,0.91967165,600.68,599.48,1.24252345]
[1741175289670,1.15973459,600.7,599.48,1.24252345]
[1741175289966,1.15973459,600.67,599.49,0.28986111]
[1741175290373,0.33291164,600.76,599.49,0.28986111]
[1741175290565,2.54067921,600.75,599.49,0.28986111]
[1741175290765,2.54067921,600.74,599.9,1.24252345]
[1741175290965,2.54067921,600.73,599.9,1.24252345]
[1741175291170,2.54067921,600.72,599.9,1.24252345]
[1741175291373,2.54067921,600.71,599.9,1.24252345]
[1741175291573,2.54067921,600.7,599.9,1.24252345]
[1741175291767,2.07924976,600.69,599.9,1.24252345]
[1741175291971,0.919605,600.68,599.9,1.24252345]
[1741175292168,1.15964476,600.67,599.9,1.24252345]
[1741175292371,1.15964476,600.67,599.89,1.24252345]
[1741175292769,0.33291164,600.76,599.89,1.24252345]
[1741175293074,2.54215177,600.75,599.89,1.24252345]
[1741175293376,3.70276361,600.74,599.89,1.24252345]
[1741175293574,2.54215177,600.73,599.89,1.24252345]
[1741175293869,0.92013379,600.72,599.89,1.24252345]
[1741175294070,0.92013379,600.71,599.89,1.24252345]
[1741175294275,1.16061184,600.71,599.89,1.24252345]
[1741175294476,1.16061184,600.71,599.94,1.24252345]
[1741175294977,0.33291164,600.76,599.94,1.24252345]
[1741175295178,2.08342059,600.75,599.94,1.24252345]
[1741175295380,2.54534605,600.74,599.94,1.24252345]
[1741175295677,0.92129228,600.73,599.94,1.24252345]
[1741175295874,0.92129228,600.72,599.94,1.24252345]
[1741175296074,0.92129228,600.71,599.94,1.24252345]
[1741175296377,0.92152351,600.7,599.95,1.24252345]
[1741175296571,0.92148797,600.69,599.95,1.24252345]
[1741175296771,4.02015981,600.68,599.95,1.24252345]
[1741175296973,2.54587478,600.67,599.95,1.24252345]
[1741175297177,2.54587478,600.66,599.95,1.24252345]
[1741175297373,2.54587478,600.65,599.95,1.24252345]
[1741175297576,2.54587478,600.64,599.95,1.24252345]
[1741175297775,2.54587478,600.63,599.95,1.24252345]
[1741175297976,2.54587478,600.62,599.95,1.24252345]
[1741175298174,2.54593362,600.61,599.95,1.24252345]
[1741175298379,2.54617411,600.6,599.9,1.24252345]
[1741175298576,2.54605969,600.59,599.9,1.24252345]
[1741175298771,0.92148797,600.58,599.9,1.24252345]
[1741175298972,0.92148797,600.57,599.9,1.24252345]
[1741175299176,0.92167105,600.56,599.9,1.24252345]
[1741175299375,0.92167105,600.55,599.9,1.24252345]
[1741175299580,2.08379936,600.54,599.9,1.24252345]
[1741175299778,1.16212831,600.54,599.9,1.24252345]
[1741175300279,2.54602686,600.53,599.9,1.24252345]
[1741175300481,0.92155093,600.52,599.9,1.24252345]
[1741175300682,0.92155093,600.51,599.9,1.24252345]
[1741175300882,1.16200871,600.51,599.9,1.24252345]
[1741175301083,1.16200871,600.5,599.9,1.24252345]
[1741175301283,1.16200871,600.5,599.8,1.24252345]
[1741175301778,1.16200871,600.5,599.81,0.2898756]
[1741175301983,0.2898756,600.7,599.81,0.2898756]
[1741175302185,4.3507252,600.69,599.81,0.2898756]
[1741175302377,4.35073074,600.68,599.81,0.2898756]
[1741175302681,4.3506333,600.67,599.81,0.2898756]
[1741175302882,4.35063884,600.66,599.81,0.2898756]
[1741175303078,4.35064439,600.65,599.81,0.2898756]
[1741175303282,4.01767178,600.64,599.81,0.2898756]
[1741175303582,4.01744782,600.63,599.81,0.2898756]
[1741175303784,4.01713763,600.62,599.83,1.24252345]
[1741175303982,4.01713763,600.61,599.83,1.24252345]
[1741175304278,5.17837792,600.6,599.83,1.24252345]
[1741175304482,4.01713763,600.59,599.83,1.24252345]
[1741175304684,4.01713763,600.58,599.83,1.24252345]
[1741175304985,4.01713763,600.58,599.81,0.2898756]
[1741175304986,4.01713763,600.57,599.89,1.24252345]
[1741175305285,4.01713763,600.56,599.89,1.24252345]
[1741175305479,3.7050822,600.55,599.89,1.24252345]
[1741175305679,2.54384191,600.54,599.89,1.24252345]
[1741175305984,3.7050822,600.53,599.89,1.24252345]
[1741175306185,0.92080982,600.52,599.89,1.24252345]
[1741175306385,0.92080982,600.51,599.89,1.24252345]
[1741175306593,2.54331205,600.5,599.89,1.24252345]
[1741175306885,2.54331205,600.49,599.89,1.24252345]
[1741175307085,2.08205011,600.48,599.89,1.24252345]
[1741175307282,2.54272151,600.47,599.89,1.24252345]
[1741175307485,2.54272151,600.46,599.89,1.24252345]
[1741175307686,2.54201072,600.45,599.89,1.24252345]
[1741175307886,2.5418742,600.44,599.89,1.24252345]
[1741175308083,2.54186781,600.43,599.89,1.24252345]
[1741175308284,0.92009903,600.42,599.89,1.24252345]
[1741175308483,1.16124029,600.44,599.89,1.24252345]
[1741175308687,2.08108232,600.43,599.89,1.24252345]
[1741175308886,2.5406432,600.42,599.66,1.24252345]
[1741175309085,2.5406432,600.41,599.82,0.2898925]
[1741175309287,1.16124029,600.4,599.82,0.2898925]
[1741175309483,1.16124029,600.4,599.66,1.24252345]
[1741175309785,1.16124029,600.4,599.82,0.28992269]
[1741175309988,1.16124029,600.4,599.66,1.24252345]
[1741175310182,1.16124029,600.39,599.66,1.24252345]
[1741175310679,1.16124029,600.38,599.66,1.24252345]
[1741175310883,1.16124029,600.38,599.67,0.2899251]
[1741175311080,1.4709355,600.55,599.67,0.2899251]
[1741175311285,4.01108994,600.54,599.67,0.2899251]
[1741175311479,4.01108994,600.53,599.67,0.2899251]
[1741175311790,2.54015444,600.52,599.67,0.2899251]
[1741175311986,4.0107867,600.51,599.67,0.2899251]
[1741175312186,4.0107867,600.5,599.67,0.2899251]
[1741175312379,2.39009185,600.49,599.04,1.24252345]
[1741175312583,2.77988125,600.5,599.04,1.24252345]
[1741175312584,4.0107867,600.48,599.04,1.24252345]
[1741175312786,4.0107867,600.47,599.04,1.24252345]
[1741175312983,4.0107867,600.46,599.04,1.24252345]
[1741175313187,4.0107867,600.46,599.57,1.24252345]
[1741175313188,4.0107867,600.45,599.57,1.24252345]
[1741175313490,5.1699731,600.44,599.57,1.24252345]
[1741175313686,4.0107867,600.43,599.57,1.24252345]
[1741175313883,4.0107867,600.42,599.57,1.24252345]
[1741175314085,4.34389241,600.41,599.57,1.24252345]
[1741175314286,2.87326569,600.4,599.57,1.24252345]
[1741175314489,2.87327124,600.39,599.57,1.24252345]
[1741175314685,2.87327679,600.38,599.43,1.24252345]
[1741175314882,2.54015444,600.37,599.43,1.24252345]
[1741175315087,2.54015444,600.36,599.43,1.24252345]
[1741175315390,2.87329344,600.35,599.43,1.24252345]
[1741175315589,2.87329899,600.34,599.43,1.24252345]
[1741175315784,0.91945959,600.33,599.43,1.24252345]
[1741175315986,2.53472878,600.32,599.43,1.24252345]
[1741175316189,2.53472257,600.31,599.43,1.24252345]
[1741175316391,2.07864599,600.3,599.43,1.24252345]
[1741175316591,0.91945959,600.29,599.43,1.24252345]
[1741175316891,1.25263744,600.28,599.43,1.24252345]
[1741175317087,0.33317785,600.28,599.43,1.24252345]
[1741175317292,1.49236425,600.28,599.43,1.24252345]
[1741175317491,1.49236425,600.28,599.17,1.24252345]
[1741175317991,0.33317785,600.28,599.17,1.24252345]
[1741175318994,0.91566863,600.27,599.07,1.24252345]
[1741175319295,2.52973189,600.26,599.07,1.24252345]
[1741175319493,2.52973189,600.25,599.07,1.24252345]
[1741175319688,2.38201318,600.24,599.07,1.24252345]
[1741175319890,3.99499948,600.23,599.07,1.24252345]
[1741175320091,3.99499948,600.22,599.07,1.24252345]
[1741175320294,3.99499948,600.21,599.07,1.24252345]
[1741175320491,3.99499948,600.2,599.07,1.24252345]
[1741175320691,2.52865493,600.19,599.07,1.24252345]
[1741175320988,2.86188829,600.18,599.07,1.24252345]
[1741175321190,2.86072539,600.17,599.07,1.24252345]
[1741175321397,1.24774464,600.16,599.07,1.24252345]
[1741175321698,2.40296879,600.15,599.07,1.24252345]
[1741175321996,1.24737012,600.14,599.08,1.24252345]
[1741175322295,0.33326112,600.13,599.08,1.24252345]
[1741175323591,0.33326112,600.13,599.06,0.29011363]
[1741175324593,0.33326112,600.13,598.77,1.24252345]
[1741175324790,0.33326112,600.13,598.78,0.33401249]
[1741175324995,0.33326112,600.13,599.06,0.29014507]
[1741175325290,0.33326112,600.13,598.78,0.33401249]
[1741175325996,0.33326112,600.13,598.79,0.2901487]
[1741175326198,0.91306633,600.12,598.79,0.2901487]
[1741175326393,0.33326112,600.13,598.8,0.33400133]
[1741175326698,0.91280696,600.12,598.8,0.33400133]
[1741175326900,1.24595675,600.11,598.8,0.33400133]
[1741175327197,1.48450719,600.1,598.8,0.33400133]
[1741175327400,0.33328334,600.09,598.8,0.33400133]
[1741175333901,0.33328334,600.09,598.79,0.29018378]
[1741175334099,1.60624372,600.22,598.79,0.29018378]
[1741175334301,3.97592316,600.21,598.79,0.29018378]
[1741175334497,3.97592316,600.2,598.79,0.29018378]
[1741175334699,5.12715257,600.19,598.79,0.29018378]
[1741175334903,3.97592316,600.18,598.79,0.29018378]
[1741175335103,2.51765889,600.17,598.79,0.29018378]
[1741175335303,0.91141517,600.16,598.79,0.29018378]
[1741175335501,0.91141517,600.15,598.79,0.29018378]
[1741175335699,0.91141517,600.14,598.79,0.29018378]
[1741175335902,2.06264458,600.13,598.79,0.29018378]
[1741175336207,0.91141517,600.12,598.79,0.29018378]
[1741175336504,0.91141517,600.11,598.79,0.29018378]
[1741175337005,0.91141517,600.1,598.79,0.29018378]
[1741175337198,3.66670396,600.16,598.79,0.29018378]
[1741175337403,2.51547455,600.15,598.79,0.29018378]
[1741175337600,0.91141517,600.14,598.79,0.29018378]
[1741175337906,0.91141517,600.13,598.79,0.29018378]
[1741175338107,0.91141517,600.12,598.79,0.29018378]
[1741175338302,0.91141517,600.11,598.79,0.29018378]
[1741175338509,3.97133245,600.15,598.79,0.29018378]
[1741175338702,0.91141517,600.14,598.79,0.29018378]
[1741175338902,0.91141517,600.13,598.79,0.29018378]
[1741175339099,0.91141517,600.12,598.79,0.29018378]
[1741175339305,0.91141517,600.16,598.79,0.29018378]
[1741175339508,0.91141517,600.15,598.79,0.29018378]
[1741175339708,0.91141517,600.14,598.67,1.24252345]
[1741175339901,0.91141517,600.13,598.67,1.24252345]
[1741175340101,0.91141517,600.12,598.67,1.24252345]
[1741175340300,0.91141517,600.11,598.67,1.24252345]
[1741175340507,0.91141517,600.1,598.67,1.24252345]
[1741175340806,0.91141517,600.09,598.74,1.24252345]
[1741175341003,0.91141517,600.08,598.74,1.24252345]
[1741175341203,0.29021645,600.1,598.74,1.24252345]
[1741175342611,2.51339374,600.27,598.74,1.24252345]
[1741175342806,3.66462315,600.26,598.74,1.24252345]
[1741175343106,0.97880246,600.37,598.84,1.24252345]
[1741175343107,5.12040931,600.25,598.84,1.24252345]
[1741175343309,3.9691799,600.24,598.84,1.24252345]
[1741175343509,3.9691799,600.23,598.84,1.24252345]
[1741175343713,3.9691799,600.22,598.84,1.24252345]
[1741175343909,3.9691799,600.21,598.84,1.24252345]
[1741175344116,2.06109576,600.2,598.84,1.24252345]
[1741175344317,1.15122941,600.2,598.84,1.24252345]
[1741175344708,3.66621069,600.21,598.84,1.24252345]
[1741175344917,2.36708143,600.2,598.84,1.24252345]
[1741175345115,1.15122941,600.19,598.84,1.24252345]
[1741175345320,1.15122941,600.19,598.93,1.24252345]
[1741175345613,0.90986635,600.2,598.93,1.24252345]
[1741175345811,1.15122941,600.21,598.93,1.24252345]
[1741175346119,0.29015838,600.18,598.93,1.24252345]
[1741175347512,0.29015838,600.18,599.01,1.24252345]
[1741175349219,0.29015838,600.18,599.07,1.24252345]
[1741175349519,0.91100435,600.17,599.07,1.24252345]
[1741175349817,0.91100435,600.16,599.07,1.24252345]
[1741175350018,0.91100435,600.15,599.07,1.24252345]
[1741175350218,0.91100435,600.14,599.07,1.24252345]
[1741175350419,0.91100435,600.13,599.07,1.24252345]
[1741175350620,0.91100435,600.12,598.85,1.24252345]
[1741175350920,1.15122941,600.16,598.85,1.24252345]
[1741175351219,0.91173177,600.15,598.85,1.24252345]
[1741175351419,0.91173177,600.14,598.85,1.24252345]
[1741175351619,0.91173177,600.13,598.85,1.24252345]
[1741175351815,0.91173177,600.12,598.85,1.24252345]
[1741175352015,1.15122941,600.17,598.85,1.24252345]
[1741175352222,0.91171466,600.16,598.85,1.24252345]
[1741175352422,0.91196438,600.15,598.85,1.24252345]
[1741175352621,0.91196438,600.14,598.85,1.24252345]
[1741175352822,0.91196438,600.13,599.13,1.24252345]
[1741175353023,0.91196438,600.12,599.13,1.24252345]
[1741175353322,0.91196438,600.11,599.13,1.24252345]
[1741175353522,0.91196438,600.1,599.13,1.24252345]
[1741175353822,0.91210885,600.09,599.13,1.24252345]
[1741175354022,2.75850087,600.14,599.13,1.24252345]
[1741175354217,2.0632452,600.13,599.13,1.24252345]
[1741175354419,0.91201579,600.12,599.13,1.24252345]
[1741175354619,0.91201579,600.11,599.13,1.24252345]
[1741175354823,0.91201579,600.1,599.15,1.24252345]
[1741175355122,2.75910392,600.16,599.15,1.24252345]
[1741175355322,2.5203062,600.15,599.15,1.24252345]
[1741175355518,0.91243169,600.14,599.15,1.24252345]
[1741175355719,0.91243169,600.13,599.15,1.24252345]
[1741175355917,2.0636611,600.12,599.15,1.24252345]
[1741175356121,0.91243169,600.11,599.09,1.24252345]
[1741175356330,1.15122941,600.12,599.09,1.24252345]
[1741175356519,0.91300527,600.11,599.09,1.24252345]
[1741175356722,0.91300527,600.1,599.09,1.24252345]
[1741175356922,0.29013056,600.15,599.09,1.24252345]
[1741175357125,0.913103,600.14,599.09,1.24252345]
[1741175357321,3.07015584,600.31,599.09,1.24252345]
[1741175357527,5.1357757,600.3,599.09,1.24252345]
[1741175357725,3.98371602,600.29,599.13,1.24252345]
[1741175357926,3.98371602,600.28,599.13,1.24252345]
[1741175358226,0.91356018,600.27,599.13,1.24252345]
[1741175358426,0.91356018,600.26,599.13,1.24252345]
[1741175358627,0.91356018,600.25,599.13,1.24252345]
[1741175358925,0.91356018,600.24,599.13,1.24252345]
[1741175359126,0.91356018,600.23,599.13,1.24252345]
[1741175359328,0.91356018,600.22,599.13,1.24252345]
[1741175359523,1.61147417,600.25,599.23,1.24252345]
[1741175359721,2.52579065,600.24,599.23,1.24252345]
[1741175359921,2.52579065,600.23,599.23,1.24252345]
[1741175360124,2.52579065,600.22,599.23,1.24252345]
[1741175360328,2.52584696,600.21,599.23,1.24252345]
[1741175360529,2.52584696,600.2,599.23,1.24252345]
[1741175360731,2.52584696,600.19,599.23,1.24252345]
[1741175360932,3.67881411,600.18,599.23,1.24252345]
[1741175361128,0.91431648,600.17,599.23,1.24252345]
[1741175361328,2.06728363,600.16,599.23,1.24252345]
[1741175361528,0.91431648,600.15,599.23,1.24252345]
[1741175361728,0.91431648,600.14,599.27,1.24252345]
[1741175361933,1.61370023,600.2,599.27,1.24252345]
[1741175362234,1.4651244,600.41,599.27,1.24252345]
[1741175362425,0.2900701,600.33,599.27,1.24252345]
[1741175362630,3.99664687,600.32,599.27,1.24252345]
[1741175362832,3.99664687,600.31,599.27,1.24252345]
[1741175363029,3.99664687,600.3,599.27,1.24252345]
[1741175363233,3.99664687,600.29,599.27,1.24252345]
[1741175363429,3.99664687,600.28,599.27,1.24252345]
[1741175363734,0.91638884,600.27,599.27,1.24252345]
[1741175363931,1.15566651,600.26,599.27,1.24252345]
[1741175364328,0.29006406,600.29,599.27,1.24252345]
[1741175364532,0.91768802,600.28,599.27,1.24252345]
[1741175364729,0.91770424,600.27,599.42,1.24252345]
[1741175364928,0.29006406,600.29,599.42,1.24252345]
[1741175365134,0.91775888,600.28,599.42,1.24252345]
[1741175365332,0.29006406,600.29,599.42,1.24252345]
[1741175365533,0.9182712,600.28,599.42,1.24252345]
[1741175365735,3.0858536,600.37,599.42,1.24252345]
[1741175366035,5.16214671,600.36,599.42,1.24252345]
[1741175366236,4.00412961,600.35,599.42,1.24252345]
[1741175366436,2.53580282,600.34,599.42,1.24252345]
[1741175366636,2.53580282,600.33,599.42,1.24252345]
[1741175366836,2.53580282,600.32,599.42,1.24252345]
[1741175367037,2.53580282,600.32,599.48,1.24252345]
[1741175367038,2.53580282,600.31,599.48,1.24252345]
[1741175367334,4.00412961,600.3,599.48,1.24252345]
[1741175367538,4.00412961,600.29,599.48,1.24252345]
[1741175367734,4.00673373,600.28,599.48,1.24252345]
[1741175367934,4.00673373,600.27,599.48,1.24252345]
[1741175368237,4.00673373,600.26,599.45,1.24252345]
[1741175368435,3.54722402,600.25,599.45,1.24252345]
[1741175368634,4.00673373,600.24,599.45,1.24252345]
[1741175368835,4.00673373,600.23,599.45,1.24252345]
[1741175369137,3.69381992,600.22,599.45,1.24252345]
[1741175369329,4.0077015,600.21,599.45,1.24252345]
[1741175369533,5.1657186,600.2,599.45,1.24252345]
[1741175369732,2.53580282,600.19,599.45,1.24252345]
[1741175369930,3.69381992,600.18,599.45,1.24252345]
[1741175370130,0.91995745,600.17,599.45,1.24252345]
[1741175370331,2.54206526,600.16,599.4,1.24252345]
[1741175370530,0.91995745,600.15,599.4,1.24252345]
[1741175370736,1.1580171,600.15,599.4,1.24252345]
[1741175370937,0.92039038,600.14,599.4,1.24252345]
[1741175371132,1.47262461,600.23,599.4,1.24252345]
[1741175371437,4.01517072,600.22,599.4,1.24252345]
[1741175371629,5.17742895,600.21,599.4,1.24252345]
[1741175371834,4.01609734,600.2,599.4,1.24252345]
[1741175372031,4.01609734,600.19,599.4,1.24252345]
[1741175372237,4.01609734,600.18,599.4,1.24252345]
[1741175372437,5.17742895,600.17,599.4,1.24252345]
[1741175372639,4.01609734,600.16,599.4,1.24252345]
[1741175372838,4.01644173,600.15,599.4,1.24252345]
[1741175373136,4.01644173,600.14,599.4,1.24252345]
[1741175373335,5.17777334,600.13,599.4,1.24252345]
[1741175373536,4.01644173,600.12,599.4,1.24252345]
[1741175373732,4.01644173,600.11,599.4,1.24252345]
[1741175373935,4.01644173,600.1,599.4,1.24252345]
[1741175374138,5.17777334,600.09,599.4,1.24252345]
[1741175374340,4.01644173,600.08,599.32,0.29007252]
[1741175374539,4.01644173,600.07,599.32,0.29007252]
[1741175374738,4.01644173,600.06,599.32,0.29007252]
[1741175374933,4.01644173,600.05,599.32,0.29007252]
[1741175375138,4.01644173,600.04,599.32,0.29007252]
[1741175375334,5.17777334,600.03,599.32,0.29007252]
[1741175375640,2.54489527,600.02,599.32,0.29007252]
[1741175375837,2.54489527,600.01,599.32,0.29007252]
[1741175376140,2.54489527,600.0,599.32,0.29007252]
[1741175376342,3.70622688,599.99,599.32,0.29007252]
[1741175376538,2.54489527,599.98,599.32,0.29007252]
[1741175376734,0.92038724,599.97,599.32,0.29007252]
[1741175376944,0.92038724,599.96,599.32,0.29007252]
[1741175377133,1.16133161,599.97,599.32,0.29007252]
[1741175377334,2.08318931,599.96,599.32,0.29007252]
[1741175377538,0.9218577,599.95,599.32,0.29007252]
[1741175377738,1.16133161,599.96,599.32,0.29007252]
[1741175377939,2.08320819,599.95,599.32,0.29007252]
[1741175378136,1.16133161,599.95,599.32,0.29007252]
[1741175378443,0.92198747,599.94,599.32,0.29007252]
[1741175378642,1.16133161,599.94,599.32,0.29007252]
[1741175379242,0.9900682,600.24,599.32,0.29007252]
[1741175379444,5.34554524,600.23,599.32,0.29007252]
[1741175379639,5.51826976,600.22,599.32,0.29007252]
[1741175379842,4.35548814,600.21,599.32,0.29007252]
[1741175380138,4.35549369,600.2,599.32,0.29007252]
[1741175380336,4.02227144,600.19,599.32,0.29007252]
[1741175380539,4.02227144,600.18,599.32,0.29007252]
[1741175380741,4.02227144,600.17,599.32,0.29007252]
[1741175380943,4.02227144,600.16,599.32,0.29007252]
[1741175381143,4.02227144,600.15,599.32,0.29007252]
[1741175381344,2.54703372,600.14,599.32,0.29007252]
[1741175381538,1.16278717,600.15,599.32,0.29007252]
[1741175381738,0.9220048,600.13,599.23,1.24252345]
[1741175382039,1.16278717,600.15,599.32,0.29011847]
[1741175382344,1.62504864,600.12,599.12,1.24252345]
[1741175382737,4.02244406,600.11,599.12,1.24252345]
[1741175382942,4.02244406,600.1,599.13,0.29011484]
[1741175383142,4.02244406,600.09,599.13,0.29011484]
[1741175383339,5.1852954,600.08,599.13,0.29011484]
[1741175383544,4.02250823,600.07,599.13,0.29011484]
[1741175383847,3.709973,600.06,599.16,1.24252345]
[1741175384041,2.54718583,600.05,599.16,1.24252345]
[1741175384244,2.54718583,600.04,599.16,1.24252345]
[1741175384445,2.5472907,600.03,599.16,1.24252345]
[1741175384642,2.08486367,600.02,599.16,1.24252345]
[1741175384842,0.9220765,600.01,599.16,1.24252345]
[1741175385039,1.62504864,600.12,599.16,1.24252345]
[1741175385244,4.02271165,600.11,599.16,1.24252345]
[1741175385447,4.02271165,600.1,599.16,1.24252345]
[1741175385747,5.18557399,600.09,599.16,1.24252345]
[1741175385948,2.54732093,600.08,599.16,1.24252345]
[1741175386149,2.54732093,600.07,599.16,1.24252345]
[1741175386348,1.16286234,600.06,599.14,0.29012088]
[1741175387146,1.62504864,600.12,599.14,0.29012088]
[1741175387344,2.54738521,600.11,599.14,0.29012088]
[1741175387546,2.54738521,600.1,599.14,0.29012088]
[1741175387746,0.92214247,600.09,599.12,1.24252345]
[1741175387945,0.92214247,600.08,599.14,0.29011726]
[1741175388144,0.92214247,600.07,599.14,0.29011726]
[1741175388348,1.16295007,600.07,599.14,0.29011726]
[1741175388951,1.62504864,600.12,599.14,0.29011726]
[1741175390854,1.62504864,600.12,599.43,1.24252345]
[1741175392754,1.62504864,600.12,599.36,1.24252345]
[1741175395151,1.62504864,600.12,599.35,1.24252345]
[1741175396959,1.62504864,600.12,599.52,1.24252345]
[1741175399157,1.62504864,600.12,599.42,1.24252345]
[1741175400761,1.62504864,600.12,599.41,1.24252345]
[1741175403366,1.62504864,600.12,599.31,0.28998429]
[1741175403367,1.62504864,600.12,599.34,1.24252345]
[1741175405465,1.62504864,600.12,599.31,1.53250774]
[1741175405670,1.62504864,600.12,599.31,1.24252345]
[1741175407063,1.62504864,600.12,599.31,1.53253795]
[1741175407770,1.62504864,600.12,599.46,1.24252345]
[1741175409273,1.62504864,600.12,599.32,0.33371153]
[1741175410875,1.62504864,600.12,599.56,1.24252345]
[1741175411171,1.62504864,600.12,599.57,0.33357239]
[1741175416278,1.62504864,600.12,599.6,1.24252345]
[1741175416772,1.62504864,600.12,599.61,0.33355014]
[1741175418481,1.62504864,600.12,599.68,1.24252345]
[1741175419678,1.62504864,600.12,599.61,0.33355014]
[1741175432881,1.62504864,600.12,599.64,1.24252345]
[1741175434582,1.62504864,600.12,599.84,1.24252345]
[1741175436682,1.62504864,600.12,599.68,1.24252345]
[1741175438389,1.62504864,600.12,599.73,1.24252345]
[1741175440687,1.62504864,600.12,599.68,0.28997584]
[1741175441793,1.62504864,600.12,599.61,1.24252345]
[1741175441994,1.62504864,600.12,599.68,0.28999033]
[1741175442195,1.62504864,600.12,599.61,1.24252345]
[1741175442396,1.62504864,600.12,599.4,1.24252345]
[1741175442988,1.62504864,600.12,599.41,0.29001571]
[1741175444096,1.62504864,600.12,599.44,1.24252345]
[1741175446290,1.62504864,600.12,599.43,1.24252345]
[1741175448589,1.62504864,600.12,599.51,1.24252345]
[1741175450797,1.62504864,600.12,599.5,1.24252345]
[1741175452301,1.62504864,600.12,599.46,0.29001329]
[1741175453796,1.62504864,600.12,599.38,1.24252345]
[1741175453996,1.62504864,600.12,599.46,0.29004472]
[1741175454398,1.62504864,600.12,599.38,1.24252345]
[1741175454599,1.62504864,600.12,592.62,9.9300067]
[1741175454600,1.62504864,600.12,599.37,1.24252345]
[1741175455800,1.62504864,600.12,599.38,0.29001692]
[1741175456907,1.62504864,600.12,599.37,1.24252345]
[1741175457107,1.62504864,600.12,599.38,0.29001933]
[1741175459808,1.62504864,600.12,599.31,1.24252345]
[1741175461009,1.62504864,600.12,599.32,0.29005559]
[1741175462709,1.62504864,600.12,599.3,1.24252345]
[1741175463908,1.62504864,600.12,599.41,1.24252345]
[1741175466409,1.62504864,600.12,599.31,0.29010516]
[1741175468512,1.95831531,600.12,599.31,0.29010516]
[1741175468713,0.91532232,600.11,599.31,0.29010516]
[1741175469013,0.91532232,600.1,599.31,0.29010516]
[1741175469315,1.15498344,600.11,599.31,0.29010516]
[1741175469510,2.06959532,600.11,599.31,0.29010516]
[1741175469707,1.95831531,600.12,599.31,0.29010516]
[1741175469912,0.91466871,600.11,599.31,0.29010516]
[1741175470307,1.95831531,600.12,599.31,0.29010516]
[1741175470510,0.91466871,600.11,599.31,0.29010516]
[1741175471114,0.91466871,600.1,599.31,0.29010516]
[1741175471413,0.91466871,600.11,599.31,0.29010516]
[1741175471609,0.91466871,600.1,599.12,1.24252345]
[1741175471814,0.91466871,600.09,599.24,0.29016564]
[1741175472017,0.91466871,600.09,599.12,1.24252345]
[1741175472018,2.52537853,600.08,599.12,1.24252345]
[1741175472215,2.52537853,600.07,599.12,1.24252345]
[1741175472514,2.52537853,600.06,599.12,1.24252345]
[1741175472713,2.52537853,600.05,599.12,1.24252345]
[1741175472913,2.52537853,600.04,599.12,1.24252345]
[1741175473116,2.52537853,600.03,599.12,1.24252345]
[1741175473315,2.52537853,600.02,599.12,1.24252345]
[1741175473517,2.52537853,600.01,599.11,0.29020314]
[1741175473815,3.67804089,600.0,599.11,0.29020314]
[1741175474012,2.85871741,599.99,599.11,0.29020314]
[1741175474213,0.91466871,599.98,599.11,0.29020314]
[1741175474409,1.9440487,599.99,599.11,0.29020314]
[1741175474410,2.06733107,599.97,599.11,0.29020314]
[1741175474610,0.91466871,599.96,599.11,0.29020314]
[1741175474816,0.91466871,599.95,598.84,1.24252345]
[1741175475015,0.33336667,599.94,599.1,0.29024913]
[1741175475311,0.33336667,599.94,598.56,1.24252345]
[1741175475516,0.33336667,599.94,598.57,0.33412967]
[1741175476316,0.33336667,599.94,598.58,0.29028424]